Cogmind - Beta 14 @@@ ROGUE MODE // 2024.08.14 @ 20:32:44 Player: JohnnyDongs Result: Destroyed by G-34 Mercenary with Small Laser Performance ------------- Evolutions (0) 0 Regions Visited (1) 200 Robots Destroyed (9) 45 Value Destroyed (216) 216 Prototype IDs (0) 0 Alien Tech Used (0) 0 Bonus (0) 0 TOTAL SCORE: 461 Bonus ------- None Cogmind --------- Core Integrity 0/250 Matter 259/300 Energy 85/100 System Corruption 0% Temperature Cool (15) Movement Walking (400) Ox4 Location -10/Materials Parts ------- > --- POWER (1) -------- (None) > --- PROPULSION (2) --- Aluminum Leg > --- UTILITY (2) ------ High-capacity Storage Unit > --- WEAPON (2) ------- Mining Claw > --- INVENTORY (20) --- Heat Sink Heat Sink Peak State ------------ > --- POWER ------------ Light Ion Engine > --- PROPULSION ------- Light Treads Light Treads > --- UTILITY ---------- Terrain Scanner > --- WEAPON ----------- Mining Claw Mining Claw > --- INVENTORY -------- EM Pulse Gun Assault Rifle [Rating: 6] Favorites ----------- Power Ion Engine Engine Ion Engine Propulsion Light Treads Treads Light Treads Leg Aluminum Leg Hover Unit Hover Unit Utility High-capacity Storage Unit Device Terrain Scanner Storage High-capacity Storage Unit Weapon Mining Claw Energy Gun EM Pulse Gun Ballistic Gun Assault Rifle Slashing Weapon Mining Claw Build | -11 -10 ------- Run | Yrd Mat Slots Evolved . | . . Power . | . . Propulsion . | . . Utility . | . . Weapon . | . . Parts Attached 16 | 5 11 Power 2 | 1 1 Engine 2 | 1 1 Core . | . . Reactor . | . . Propulsion 4 | 2 2 Treads 2 | 2 . Leg 1 | . 1 Wheel . | . . Hover 1 | . 1 Flight . | . . Utility 2 | . 2 Device 1 | . 1 Storage 1 | . 1 Processor . | . . Hackware . | . . Protection . | . . Artifact . | . . Weapon 8 | 2 6 Energy Gun 2 | 1 1 Energy Cannon . | . . Ballistic Gun 3 | 1 2 Ballistic Cannon . | . . Launcher . | . . Special Weapon . | . . Impact Weapon . | . . Slashing Weapon 3 | . 3 Piercing Weapon . | . . Special Melee Weapon . | . . Unidentified Prototypes . | . . Parts Lost 7 | . 7 Power 1 | . 1 Propulsion 3 | . 3 Utility 1 | . 1 Weapon 2 | . 2 Highest Loss Streak 6 | . 6 To Critical Strikes . | . . Average Slot Usage (%) 73 | . 73 Engine 12 | . 12 Treads 25 | . 25 Device 3 | . 3 Storage 4 | . 4 Energy Gun 6 | . 6 Ballistic Gun 9 | . 9 Slashing Weapon 10 | . 10 Peak Build Rating 6 | 5 6 Average Rating 5 | 4 5 On Entrance 2 | . 5 Naked Turns . | . . Heaviest Build 49 | 7 49 Greatest Support 40 | 40 40 Greatest Overweight (x) 13 | . 13 Average Overweight (x) . | . . Largest Inventory Capacity 20 | 5 20 Average Capacity 9 | 5 9 Most Carried 4 | . 4 Average Carried 2 | . 2 Final Capacity 20 | 5 20 Final Carried 2 | . 2 Class Distribution -------------------- 100% | Mutant Dominant Class ---------------- Mutant | -10/Materials Resources | -11 -10 ----------- Run | Yrd Mat Matter Collected 323 | 224 99 Remotely . | . . Salvage Created 251 | . 251 Parts 20 | . 20 Haulers Intercepted . | . . Recyclers Shooed . | . . Parts Field Recycled . | . . Retrieved Matter . | . . Parts Self-Destructed . | . . Prevented . | . . Kills | -11 -10 ------- Run | Yrd Mat Combat Hostiles Destroyed 8 | . 8 Melee 5 | . 5 Guns 3 | . 3 Classes Destroyed 3 | . 3 Watcher 1 | . 1 Swarmer 3 | . 3 Grunt 5 | . 5 Best Kill Streak 3 | . 3 Combat Bots Only 3 | . 3 Max Kills in Single Turn 2 | . 2 Gunslinging . | . . Exploded . | . . Melee 1 | . 1 Uniques/NPCs Destroyed . | . . Combat | -11 -10 -------- Run | Yrd Mat Hostile Shots Fired 108 | . 108 Missed 31 | . 31 Damage Taken 910 | . 910 Core 254 | . 254 Absorbed by Shields . | . . Core Remaining (%) 100 | 100 . Volleys Fired 13 | . 13 Largest 2 | . 2 Hottest 60 | . 60 Shots Fired 21 | . 21 Gun 21 | . 21 Cannon . | . . Launcher . | . . Special . | . . Kinetic 13 | . 13 Thermal . | . . Explosive . | . . Electromagnetic 8 | . 8 Robot Hit Streak 2 | . 2 Robot Miss Streak 3 | . 3 Penetration Max . | . . Secondary Targets . | . . Shots Hit Robots 24 | . 24 Core Hits 10 | . 10 Critical Kills . | . . Critical Parts Destroyed . | . . Critical Strikes . | . . Melee Attacks 28 | . 28 Impact . | . . Slashing 28 | . 28 Piercing . | . . Sneak Attacks . | . . Combat Hostiles . | . . Follow-up Attacks 2 | . 2 Damage Inflicted 434 | . 434 Guns 111 | . 111 Cannons . | . . Explosions . | . . Melee 323 | . 323 Ramming . | . . Kinetic 87 | . 87 Thermal . | . . Explosive . | . . Electromagnetic 24 | . 24 Impact . | . . Slashing 323 | . 323 Piercing . | . . Highest Corruption . | . . Average Corruption . | . . Corruption Purged . | . . Corruption Blocked . | . . Overload Shots . | . . Overflow Damage . | . . Projectiles . | . . Explosions . | . . Melee . | . . Knockbacks . | . . Impact . | . . Kinetic . | . . Secondary . | . . Self-Inflicted Damage . | . . Shots . | . . Rammed . | . . Targets Rammed . | . . Kicked . | . . Crushed . | . . Highest Temperature 30 | . 30 Average Temperature 15 | . 15 Received Heat Transfer 510 | . 510 Siege Activations . | . . Robots Corrupted . | . . Combat Hostiles . | . . Parts Fried . | . . Impact Corruptions . | . . Robots Melted . | . . Combat Hostiles . | . . Parts Melted . | . . Heat Transferred . | . . Parts Sabotaged . | . . Parts Stolen . | . . Parts Stripped . | . . Power Chain Reactions . | . . Alert | -11 -10 ------- Run | Yrd Mat Peak Influence 222 | . 222 Initial . | . . Average 74 | . 86 Maximum Alert Level 1 | . 1 Low Security (%) 91 | 100 90 Level 1 8 | . 9 Level 2 . | . . Level 3 . | . . Level 4 . | . . Level 5 . | . . High Security . | . . Max Security . | . . Squads Dispatched 3 | . 3 Investigation 1 | . 1 Extermination . | . . Reinforcement 2 | . 2 Assault . | . . Garrison . | . . Intercept . | . . Searches Triggered . | . . Construction Impeded . | . . Haulers Reinforced . | . . Active Scanning Responses . | . . Cargo Convoy Interrupts . | . . Stealth | -11 -10 --------- Run | Yrd Mat Distress Signals 2 | . 2 Communications Jammed . | . . Distress Signals . | . . Times Spotted 16 | . 16 Peak Tracking Total 6 | . 6 Tactical Retreats 1 | . 1 Traps | -11 -10 ------- Run | Yrd Mat Traps Triggered 1 | . 1 Indirectly . | . . Trap Hack Attempts . | . . Triggered . | . . Disarmed . | . . Reprogrammed . | . . Reused . | . . Traps Extracted . | . . Installed . | . . Triggered . | . . Machines | -11 -10 ---------- Run | Yrd Mat Machines Disabled . | . . Max in Single Turn . | . . Machines Repaired . | . . Machines Dismantled . | . . Machines Sabotaged . | . . Overloaded Fab Kills . | . . Hacking | -11 -10 --------- Run | Yrd Mat Machines Accessed 1 | . 1 Terminals 1 | . 1 Fabricators . | . . Repair Stations . | . . Recycling Units . | . . Scanalyzers . | . . Garrison Access . | . . Total Hacks 4 | . 4 Successful 2 | . 2 Failed 2 | . 2 Catastrophic . | . . Database Lockouts . | . . Manual . | . . Terminals 4 | . 4 Fabricators . | . . Repair Stations . | . . Recycling Units . | . . Scanalyzers . | . . Garrison Access . | . . Terminal Hacks 2 | . 2 Branch Access Points 1 | . 1 Unreport Threat 1 | . 1 Fabricator Hacks . | . . Repair Station Hacks . | . . Recycling Unit Hacks . | . . Scanalyzer . | . . Garrison Access Hacks . | . . Unauthorized Hacks . | . . Terminals . | . . Fabricators . | . . Repair Stations . | . . Recycling Units . | . . Scanalyzers . | . . Garrison Access . | . . Data Cores Recovered . | . . Used . | . . Hacking Detections 1 | . 1 Full Trace Events . | . . Feedback Events . | . . Feedback Blocked . | . . Robot Schematics Acquired . | . . Robots Built . | . . Authchips . | . . Time . | . . Total Robot Build Rating . | . . Part Schematics Acquired . | . . Parts Built . | . . Authchips . | . . Time . | . . Total Part Build Rating . | . . Parts Repaired . | . . Time . | . . Parts Recycled . | . . Recycled Matter . | . . Retrieved Matter . | . . Retrieved Components . | . . Parts Scanalyzed . | . . Part Schematics Acquired . | . . Parts Damaged . | . . Bothacking | -11 -10 ------------ Run | Yrd Mat Used RIF Installer . | . . Robots Hacked . | . . Non-combat . | . . Combat . | . . Robot Hacks Applied . | . . Relay Couplers Released . | . . Fabnet Peak Effective % . | . . Robots Rewired . | . . Allies Hacked . | . . Hacks Repelled . | . . Allies | -11 -10 -------- Run | Yrd Mat Total Allies . | . . Largest Group . | . . Highest-Rated Group . | . . Highest-Rated Ally . | . . Total Orders . | . . Ally Attacks . | . . Total Damage . | . . Kills . | . . Allies Corrupted . | . . Allies Melted . | . . Intel | -11 -10 ------- Run | Yrd Mat Robot Analysis Total . | . . Derelict Logs Recovered . | . . Drone Launches . | . . Drone Recoveries . | . . Exploration | -11 -10 ------------- Run | Yrd Mat Turns Passed 484 | 65 419 Spaces Moved 200 | 38 162 Core 4 | 3 1 Treads 196 | 35 161 Legs . | . . Wheels . | . . Hover . | . . Flight . | . . Fastest Speed 50 | 50 160 Average Speed 172 | 151 177 Slowest Speed 700 | 160 700 Overloaded Moves . | . . Propulsion Burnouts . | . . Robots Hopped . | . . Cave-ins Triggered . | . . Exploration Rate (%) 21 | 4 39 Regions Visited 1 Branch Regions . Pre-discovered Areas . | . . Known Exits Taken . | . . Unknown Exits Taken 1 | 1 . Scrap Searched . | . . Spaces Dug . | . . Terrain Destroyed . | . . Melee . | . . Projectile . | . . AOE . | . . Terrain Rammed . | . . Walls Destroyed . | . . Machines Disabled . | . . Actions | -11 -10 --------- Run | Yrd Mat Total 260 | 43 217 Wait 1 | 1 . Move 199 | 37 162 Hop . | . . Pick Up 3 | . 3 Fast Attach 9 | 5 4 Attach 3 | . 3 Detach . | . . Swap 4 | . 4 Drop 2 | . 2 Fire 13 | . 13 Melee 26 | . 26 Ram . | . . Kick . | . . Crush . | . . Escape Stasis . | . . Rewire . | . . Trap . | . . Miscellaneous . | . . Route ------- -11/Scrapyard -10/Materials (discovered 2 exits: [*Mat] / *Min) History --------- Turn | Location | Event 6 | -11/Scrapyard | Discovered new exit (range 15) 66 | -11/Scrapyard | Entered Materials 161 | -10/Materials | Discovered new exit (range 15) 318 | -10/Materials | Build established: Mutant 329 | -10/Materials | Identified exit to Mines 472 | -10/Materials | Core integrity fell below 50% 478 | -10/Materials | Core integrity fell below 20% 485 | -10/Materials | Destroyed by G-34 Mercenary with Small Laser Last Messages --------------- 00373_ K-01 Serf cleans the Fusion Modulator. 00389_ K-01 Serf collects debris. 00401_ Triggered Alarm Trap. 00401_ An alarm sounds. 00401_ ALERT: Alarm triggered, dispatching investigation squad. 00409_ EM Pulse Gun destroyed. 00421_ U-05 Engineer lays Concrete. 00433_ G-34 Mercenary Heat Sink ripped off. 00435_ Lgt. Treads destroyed. 00439_ G-34 Mercenary destroyed. 00444_ Ion Engine destroyed. 00447_ G-34 Mercenary destroyed. 00449_ Critical hit (Burn: +37). 00457_ Electrolysis Chamber disabled. 00459_ Hover Unit destroyed. 00465_ Lgt. Treads destroyed. 00467_ Assault Rifle destroyed. 00484_ Acquired Aluminum Leg. Map ----- +----------------------------------------------------+ | | | | | | | | | | | | | | | | | | | | | | | | | | | | | | | | | | | ?????????????????????????????????????????????????? | | ?????????????????????????????????????????????????? | | ??????????????????########?#####?????????????????? | | ??????????????????# ? ??????????????????? | | ??????????????????# """ # ???????????????????? | | ??????????????????# """ g# #???????????????????? | | ??????????????????# """ # #??????#####????????? | | ??????????????????# =#% #?????##"""##???????? | | ??????????????????# """ *@g% #????##"|||"##??????? | | ??????????????????# """ [#! #????#"" ""#??????? | | ??????????????????# "" # #????# #??????? | | ??????????????????# # #????# > #??????? | | ??????????????????# # #????# #??????? | | ??????????????????# # #????# #??????? | | ??????????????????######### #?????# #???????? | | ??????????????????????????# #??????# ########## | | ??????????????# ######### ######## # !! | | ??????????????# T + ! | | ??????????????# # | | ??????????????# # | | ??????????????# ######## """ ###### | | ????????????????????? ???# """ #????########## | | ??????????????? ?? " ??# """ ############??? | | ??????????????? ?? T ?# ## #??? | | ??????????????? ???" ?# ## *= #??? | | ??????????????# #??? # """ ## [%=%[ #??? | | ??????????????# #???? # """ # [%! #??? | | ??????????????# #????? + """ / *! #??? | | ??????????????# #??????# # % #??? | | ??????????????# #??" ??# # #??? | | ?????????????## ##?????# ##### # #??? | | ?????????????# #??? ?# #####+###########??? | | ?????????????? #?????# + #????? | +----------------------------------------------------+ Best States ------------- Heat Dissipation 25 Energy Generation 10 Energy Capacity 250 Matter Stores 300 Matter Capacity 300 Sight Range 16 Terrain Scan Range 14 Terrain Scan Density 10 Evasion (%) 40 Recoil Reduction 2 Item Schematics ----------------- None Robot Schematics ------------------ None Fabricated ------------ Nothing Alien Tech Used ----------------- None Achievements -------------- None Challenges ------------ None Game ------ Seed LightningSalvagePlatform Manual? 0 Play Time 00:06:28 Cumulative 14.2 hours Start 2024.08.14 @ 20:26:27 End 2024.08.14 @ 20:32:44 Sessions 1 Manual Loads 0 Difficulty Rogue Special Mode None Game No. 10 Rogue 10 Adventurer 0 Explorer 0 Win Type - Total 0 Types 0/0/0/0/0/0/0/0/0 Lore% 10 Gallery% 14 Achievement% 18 Wizard Run 0 Options --------- Layout 1 ASCII 0 Keyboard 0 Movement Numpad Keybinds 0 Fullscreen 1 Font 24/Smallcaps Map View 50x35 Zoom Use 0% Tactical HUD 1 Map Filters NONE Filters NONE Steam 1 RUN: e44efb22-b48a-42af-b4c5-50e7a0ecce03